Workbook

Sheet Cover
B2: 3GPP TSG-RAN WG4 Meeting #98-e | J2: R4-210xxxx
B3: Online meeting, Jan. 25th -Feb. 5th, 2021
B5: Source: ZTE
B6: Title: Updated simulation results collection on BS demodulation requirements for 2-step RACH
B7: Agenda: 7.18.2
B8: Document for: Information

Sheet Parameters
C2: Parameters for deriving performance requirements
C3: Ideal Span Threshold | D3: 2 | E3: dB
C4: Impairment Span Threshold | D4: 4 | E4: dB
B7: Notes | C7: 1. Call function DerivingPerfReq()
C8: 2. If the ruls does not apply, or fails, -100dB or less will be returned
D9: -100 | E9: Not enough input
D10: -101 | E10: Input should be pairs
D11: -102 | E11: Too large span for impairment
D12: -103 | E12: After removal iteration, not enough input

Sheet Testing Param
B2: Test parameters for FR1 | G2: Test parameters for FR2
B3: Parameter | D3: Value | G3: Parameter | I3: Value
B4: Transform precoding | D4: Disabled | G4: Transform precoding | I4: Disabled
B5: Channel bandwidth | D5: 15 kHz SCS: 10 MHz | G5: Channel bandwidth | I5: 60 kHz SCS: 50 MHz
D6: 30 kHz SCS: 40 MHz | I6: 120 kHz SCS: 100 MHz
B7: MCS | D7: 1 | G7: MCS | I7: 2
B8: DM-RS | C8: DM-RS configuration type | D8: 1 | G8: DM-RS | H8: DM-RS configuration type | I8: 1
C9: DM-RS duration | D9: single-symbol DM-RS | H9: DM-RS duration | I9: single-symbol DM-RS
C10: DM-RS position (l0) | D10: 2 | H10: DM-RS position (l0) | I10: 2
C11: Additional DM-RS position | D11: pos2 or pos1 | H11: Additional DM-RS position | I11: pos1
C12: Number of DM-RS CDM group(s) without data | D12: 2 | H12: Number of DM-RS CDM group(s) without data | I12: 2
C13: Ratio of PUSCH EPRE to DM-RS EPRE | D13: -3 dB | H13: Ratio of PUSCH EPRE to DM-RS EPRE | I13: -3 dB
C14: DM-RS port | D14: {0} | H14: DM-RS port | I14: {0}
C15: DM-RS sequence generation | D15: NID0=0, nSCID = 0 | H15: DM-RS sequence generation | I15: NID0=0, nSCID = 0
B17: Time domain resource assignment | C17: PUSCH mapping type | D17: Both A and B | G17: Time domain resource assignment | H17: PUSCH mapping type | I17: Type B
C18: Allocation length | D18: 14 | H18: Allocation length | I18: 10
B19: Frequency domain resource assignment | C19: RB assignment | D19: 2 PRBs | G19: Frequency domain resource assignment | H19: RB assignment | I19: 2 PRBs
C20: Starting PRB index | D20: 0 | H20: Starting PRB index | I20: 0
C21: Frequency hopping | D21: Disabled | H21: Frequency hopping | I21: Disabled
B22: Time offset (TO) Cycling (µs) | C22: start:step:end | D22: 15k SCS: 0:0.2:3.8 | G22: Time Offset (TO) cycling level (µs) | H22: sart:step:end | I22: SCS 60k: 0:0.1:0.6
D24: 30k SCS: 0:0.1:2 | I24: SCS 120k: 0:0.1:0.5
B26: Test Metric | C26: BLER | D26: 0.01 | G26: Test Metric | H26: BLER | I26: 0.01

Sheet FR1
B3: Number of TX antennas | C3: Number of RX antennas | D3: Cyclic prefix | E3: Mapping Type | F3: TO cycling (start:step:end) [µs] | G3: Channel Bandwidth [MHz] | H3: SCS [kHz] | I3: Propagation conditions and correlation matrix (Annex G) | J3: FRC | K3: TS38.104 Req. [dB] | L3: TS38.141 Req. [dB] | M3: Samsung | O3: ZTE | Q3: Ericsson | S3: Nokia | U3: Huawei | W3: Intel
J4: (Annex A) | M4: Ideal [dB] | N4: Impairment [dB] | O4: Ideal [dB] | P4: Impairment [dB] | Q4: Ideal [dB] | R4: Impairment [dB] | S4: Ideal [dB] | T4: Impairment [dB] | U4: Ideal [dB] | V4: Impairment [dB] | W4: Ideal [dB] | X4: Impairment [dB]
B5: 1 | C5: 2 | D5: Normal | E5: Type A | F5: 0:0.2:3.8 | G5: 10 | H5: 15 | I5: TDLC300-100 low | J5: G-FR1-A8-1, or G-FR1-A8-2 | K5: =DerivingPerfReq(M5:X5) -> 7.3 | L5: =IF(K5>-100,K5+0.6,K5) -> 7.9 | M5: 5.26 | N5: =M5+2 -> 7.26 | O5: 3.5 | P5: =O5+2.5 -> 6 | Q5: 4.8 | R5: 7.1 | S5: 5.7 | T5: =S5+2.5 -> 8.2 | U5: 4 | V5: 6.5 | W5: 4.8 | X5: 7.3
F6: 0:0.1:2 | G6: 40 | H6: 30 | I6: TDLC300-100 low | J6: G-FR1-A8-3, or G-FR1-A8-2 | K6: =DerivingPerfReq(M6:X6) -> 7.1 | L6: =IF(K6>-100,K6+0.6,K6) -> 7.7 | M6: 5.21 | N6: =M6+2 -> 7.21 | O6: 3 | P6: =O6+2.5 -> 5.5 | Q6: 4.7 | R6: 6.8 | S6: 5.3 | T6: =S6+2.5 -> 7.8 | U6: 3.7 | V6: 6.2 | W6: 5 | X6: 7.5
E7: Type B | F7: 0:0.2:3.8 | G7: 10 | H7: 15 | I7: TDLC300-100 low | J7: G-FR1-A8-1, or G-FR1-A8-2 | K7: =DerivingPerfReq(M7:X7) -> 7 | L7: 7.6 | M7: 5.24 | N7: 7.24 | O7: 4.1 | P7: 6.6 | Q7: 4.9 | R7: 7.1 | S7: 5.9 | T7: 8.4 | U7: 3.9 | V7: 6.4 | W7: 5 | X7: 7.5
F8: 0:0.1:2 | G8: 40 | H8: 30 | I8: TDLC300-100 low | J8: G-FR1-A8-1, or G-FR1-A8-2 | K8: =DerivingPerfReq(M8:X8) -> 7.6 | L8: 8.2 | M8: 5.14 | N8: 7.14 | O8: 3 | P8: 5.5 | Q8: 4.6 | R8: 7 | S8: 5.4 | T8: 7.9 | U8: 3.9 | V8: 6.4 | W8: 6 | X8: 8.5

Sheet FR2
B2: Number of TX antennas | C2: Number of RX antennas | D2: Cyclic prefix | E2: Mapping Type | F2: TO cycling (start:step:end) [µs] | G2: Channel Bandwidth [MHz] | H2: SCS [kHz] | I2: Propagation conditions and correlation matrix (Annex G) | J2: FRC | K2: TS38.104 Req. | L2: TS38.141 Req. | M2: Samsung | O2: ZTE | Q2: Ericsson | S2: Nokia | U2: Huawei | W2: Intel
J3: (Annex A) | M3: Ideal [dB] | N3: Impairment [dB] | O3: Ideal [dB] | P3: Impairment [dB] | Q3: Ideal [dB] | R3: Impairment [dB] | S3: Ideal [dB] | T3: Impairment [dB] | U3: Ideal [dB] | V3: Impairment [dB] | W3: Ideal [dB] | X3: Impairment [dB]
B4: 1 | C4: 2 | D4: Normal | E4: Type B | F4: 0:0.1:0.6 | G4: 50 | H4: 60 | I4: TDLA30-300 low | J4: G-FR2-A9-1 | K4: =DerivingPerfReq(M4:X4) -> 8.7 | L4: =IF(K4>-100,K4+0.6,K4) -> 9.3 | M4: 6.43 | N4: 8.43 | O4: 5 | P4: =O4+3 -> 8 | Q4: 6.3 | R4: 8.8 | S4: 6.8 | T4: =S4+2.5 -> 9.3 | U4: 5.7 | V4: 8.2 | W4: 6.9 | X4: 9.4
F5: 0:0.1:0.5 | G5: 100 | H5: 120 | I5: TDLA30-300 low | J5: G-FR2-A9-1 | K5: =DerivingPerfReq(M5:X5) -> 8.3 | L5: =IF(K5>-100,K5+0.6,K5) -> 8.9 | M5: 6.02 | N5: 8.02 | O5: 5.1 | P5: =O5+3 -> 8.1 | Q5: 6 | R5: 8 | S5: 6.4 | T5: =S5+2.5 -> 8.9 | U5: 5.3 | V5: 7.8 | W5: 6.3 | X5: 8.8
